fUSD/lending_fUSD_20240412
["ID","MTS","AMOUNT","RATE_DAILY","PERIOD"]
[322223409,1712892639990,-434.17036871,0.00027397,2]
[322223424,1712892640126,-65.82963129,0.00027397,2]
[322223425,1712892640135,-500.0,0.00027397,2]
[322223426,1712892640144,-468.43846371,0.00027397,2]
[322223442,1712892640363,-31.56153629,0.00027397,2]
[322223444,1712892640373,-500.0,0.00027397,2]
[322223446,1712892640382,-528.27152567,0.00027397,2]
[322223448,1712892640394,-74.32847433,0.00027397,2]
[322223450,1712892640404,-271.75683042,0.00027397,2]
[322223452,1712892640416,-228.24316958,0.00027397,2]
[322223454,1712892640425,-51.41903039,0.00027397,2]
[322223457,1712892640437,-448.58096961,0.00027397,2]
[322223459,1712892640446,-500.0,0.00027397,2]
[322223461,1712892640455,-500.0,0.00027397,2]
[322223463,1712892640465,-505.04590307,0.00027397,2]
[322223465,1712892640474,-303.68946005,0.00027397,2]
[322223467,1712892640483,-500.0,0.00027397,2]
[322223469,1712892640493,-500.0,0.00027397,2]
[322223471,1712892640502,-500.0,0.00027397,2]
[322223473,1712892640511,-500.0,0.00027397,2]
[322223475,1712892640521,-502.69523355,0.00027397,2]
[322223477,1712892640530,-500.0,0.00027397,2]
[322223479,1712892640539,-500.0,0.00027397,2]
[322223481,1712892640548,-500.0,0.00027397,2]
[322223483,1712892640558,-502.91811239,0.00027397,2]
[322223485,1712892640567,-500.0,0.00027397,2]
[322223487,1712892640576,-500.0,0.00027397,2]
[322223489,1712892640585,-500.0,0.00027397,2]
[322223491,1712892640594,-500.0,0.00027397,2]
[322223493,1712892640604,-500.0,0.00027397,2]
[322223495,1712892640613,-500.0,0.00027397,2]
[322223497,1712892640621,-633.68,0.00027397,2]
[322223499,1712892640631,-500.0,0.00027397,2]
[322223501,1712892640640,-158.60586628,0.00027397,2]
[322223503,1712892640649,-500.0,0.00027397,2]
[322223505,1712892640658,-500.0,0.00027397,2]
[322223507,1712892640668,-506.31335323,0.00027397,2]
[322223509,1712892640677,-504.62479039,0.00027397,2]
[322223511,1712892640686,-160.9111582,0.00027397,2]
[322223513,1712892640695,-490.02527087,0.00027397,2]
[322223515,1712892640704,-519.46079367,0.00027397,2]
[322223517,1712892640713,-503.42265542,0.00027397,2]
[322223519,1712892640724,-509.17222124,0.00027397,2]
[322223521,1712892640733,-500.0,0.00027397,2]
[322223523,1712892640742,-500.0,0.00027397,2]
[322223525,1712892640751,-500.0,0.00027397,2]
[322223527,1712892640760,-500.0,0.00027397,2]
[322223529,1712892640771,-500.0,0.00027397,2]
[322223531,1712892640780,-500.0,0.00027397,2]
[322223533,1712892640790,-500.0,0.00027397,2]
[322223535,1712892640799,-500.0,0.00027397,2]
[322223537,1712892640808,-500.0,0.00027397,2]
[322223539,1712892640817,-503.97854115,0.00027397,2]
[322223542,1712892640826,-500.0,0.00027397,2]
[322223544,1712892640836,-500.0,0.00027397,2]
[322223545,1712892640845,-500.0,0.00027397,2]
[322223547,1712892640854,-1745.75,0.00027397,2]
[322223550,1712892640865,-500.0,0.00027397,2]
[322223552,1712892640874,-591.64,0.00027397,2]
[322223554,1712892640883,-500.0,0.00027397,2]
[322223556,1712892640893,-500.0,0.00027397,2]
[322223558,1712892640902,-500.0,0.00027397,2]
[322223559,1712892640911,-500.0,0.00027397,2]
[322223561,1712892640920,-500.0,0.00027397,2]
[322223563,1712892640929,-500.0,0.00027397,2]
[322223565,1712892640939,-500.0,0.00027397,2]
[322223567,1712892640948,-500.0,0.00027397,2]
[322223569,1712892640957,-500.0,0.00027397,2]
[322223571,1712892640966,-500.0,0.00027397,2]
[322223574,1712892640976,-502.70358925,0.00027397,2]
[322223575,1712892640984,-500.0,0.00027397,2]
[322223577,1712892640993,-256.22479578,0.00027397,2]
[322223579,1712892641003,-500.0,0.00027397,2]
[322223582,1712892641013,-500.0,0.00027397,2]
[322223584,1712892641022,-500.0,0.00027397,2]
[322223585,1712892641031,-500.0,0.00027397,2]
[322223588,1712892641040,-197.99391031,0.00027397,2]
[322223590,1712892641050,-500.0,0.00027397,2]
[322223592,1712892641059,-500.0,0.00027397,2]
[322223594,1712892641068,-565.41,0.00027397,2]
[322223595,1712892641077,-513.55937436,0.00027397,2]
[322223597,1712892641086,-500.0,0.00027397,2]
[322223599,1712892641095,-500.0,0.00027397,2]
[322223601,1712892641105,-500.0,0.00027397,2]
[322223603,1712892641114,-500.0,0.00027397,2]
[322223605,1712892641124,-500.0,0.00027397,2]
[322223607,1712892641137,-500.0,0.00027397,2]
[322223610,1712892641148,-500.0,0.00027397,2]
[322223612,1712892641158,-549.01658425,0.00027397,2]
[322223613,1712892641167,-500.0,0.00027397,2]
[322223615,1712892641176,-500.0,0.00027397,2]
[322223617,1712892641185,-500.0,0.00027397,2]
[322223620,1712892641195,-500.0,0.00027397,2]
[322223622,1712892641204,-500.0,0.00027397,2]
[322223624,1712892641213,-500.0,0.00027397,2]
[322223626,1712892641222,-500.0,0.00027397,2]
[322223628,1712892641232,-500.0,0.00027397,2]
[322223630,1712892641241,-500.0,0.00027397,2]
[322223632,1712892641250,-500.0,0.00027397,2]
[322223634,1712892641259,-500.0,0.00027397,2]
[322223636,1712892641270,-500.0,0.00027397,2]
[322223638,1712892641279,-500.0,0.00027397,2]
[322223640,1712892641289,-503.98112246,0.00027397,2]
[322223642,1712892641298,-500.0,0.00027397,2]
[322223643,1712892641307,-500.0,0.00027397,2]
[322223645,1712892641317,-368.77,0.00027397,2]
[322223647,1712892641328,-500.0,0.00027397,2]
[322223650,1712892641338,-582.29489682,0.00027397,2]
[322223652,1712892641349,-496.20589075,0.00027397,2]
[322223654,1712892641358,-500.0,0.00027397,2]
[322223656,1712892641367,-500.0,0.00027397,2]
[322223657,1712892641376,-500.0,0.00027397,2]
[322223658,1712892641385,-554.32968988,0.00027397,2]
[322223659,1712892641394,-500.0,0.00027397,2]
[322223660,1712892641404,-500.0,0.00027397,2]
[322223661,1712892641413,-500.0,0.00027397,2]
[322223662,1712892641422,-500.0,0.00027397,2]
[322223663,1712892641431,-500.0,0.00027397,2]
[322223664,1712892641440,-500.0,0.00027397,2]
[322223665,1712892641449,-500.0,0.00027397,2]
[322223666,1712892641459,-500.0,0.00027397,2]
[322223667,1712892641468,-557.17192174,0.00027397,2]
[322223668,1712892641477,-500.0,0.00027397,2]
[322223669,1712892641487,-500.0,0.00027397,2]
[322223670,1712892641497,-564.06,0.00027397,2]
[322223671,1712892641507,-229.30029411,0.00027397,2]
[322223672,1712892641517,-500.0,0.00027397,2]
[322223673,1712892641526,-500.0,0.00027397,2]
[322223674,1712892641535,-500.0,0.00027397,2]
[322223675,1712892641545,-500.0,0.00027397,2]
[322223676,1712892641554,-500.0,0.00027397,2]
[322223677,1712892641563,-150.0,0.00027397,2]
[322223678,1712892641573,-473.39814726,0.00027397,2]
[322223679,1712892641582,-500.0,0.00027397,2]
[322223680,1712892641591,-500.0,0.00027397,2]
[322223681,1712892641600,-500.0,0.00027397,2]
[322223682,1712892641609,-500.0,0.00027397,2]
[322223683,1712892641619,-500.0,0.00027397,2]
[322223684,1712892641627,-500.0,0.00027397,2]
[322223685,1712892641637,-500.0,0.00027397,2]
[322223686,1712892641646,-500.0,0.00027397,2]
[322223687,1712892641656,-500.0,0.00027397,2]
[322223688,1712892641665,-500.0,0.00027397,2]
[322223689,1712892641674,-500.0,0.00027397,2]
[322223690,1712892641683,-500.0,0.00027397,2]
[322223691,1712892641692,-1022.99,0.00027397,2]
[322223692,1712892641702,-446.58685278,0.00027397,2]
[322223693,1712892641711,-500.0,0.00027397,2]
[322223694,1712892641720,-500.0,0.00027397,2]
[322223695,1712892641729,-500.0,0.00027397,2]
[322223696,1712892641738,-500.0,0.00027397,2]
[322223697,1712892641748,-500.0,0.00027397,2]
[322223698,1712892641757,-500.0,0.00027397,2]
[322223699,1712892641768,-505.09271458,0.00027397,2]
[322223700,1712892641777,-569.53795337,0.00027397,2]
[322223701,1712892641786,-500.0,0.00027397,2]
[322223702,1712892641794,-500.0,0.00027397,2]
[322223703,1712892641803,-500.0,0.00027397,2]
[322223704,1712892641813,-1427.79,0.00027397,2]
[322223705,1712892641822,-500.0,0.00027397,2]
[322223706,1712892641831,-500.0,0.00027397,2]
[322223707,1712892641840,-210.22968725,0.00027397,2]
[322223708,1712892641849,-500.0,0.00027397,2]
[322223709,1712892641858,-500.0,0.00027397,2]
[322223710,1712892641867,-500.0,0.00027397,2]
[322223711,1712892641876,-500.0,0.00027397,2]
[322223712,1712892641885,-500.0,0.00027397,2]
[322223713,1712892641894,-500.0,0.00027397,2]
[322223714,1712892641903,-398.23659166,0.00027397,2]
[322223715,1712892641912,-500.0,0.00027397,2]
[322223716,1712892641921,-500.0,0.00027397,2]
[322223717,1712892641930,-500.0,0.00027397,2]
[322223718,1712892641939,-500.0,0.00027397,2]
[322223719,1712892641949,-500.0,0.00027397,2]
[322223720,1712892641958,-500.0,0.00027397,2]
[322223721,1712892641967,-500.0,0.00027397,2]
[322223722,1712892641976,-464.03590961,0.00027397,2]
[322223723,1712892641985,-500.0,0.00027397,2]
[322223724,1712892641994,-504.17105924,0.00027397,2]
[322223725,1712892642003,-415.86787763,0.00027397,2]
[322223726,1712892642013,-500.0,0.00027397,2]
[322223727,1712892642023,-506.1241308,0.00027397,2]
[322223728,1712892642032,-500.0,0.00027397,2]
[322223729,1712892642042,-568.94497516,0.00027397,2]
[322223730,1712892642051,-500.0,0.00027397,2]
[322223731,1712892642061,-640.90093954,0.00027397,2]
[322223732,1712892642070,-648.31,0.00027397,2]
[322223733,1712892642079,-501.8581612,0.00027397,2]
[322223734,1712892642088,-500.0,0.00027397,2]
[322223735,1712892642098,-500.0,0.00027397,2]
[322223736,1712892642107,-500.0,0.00027397,2]
[322223737,1712892642116,-500.0,0.00027397,2]
[322223738,1712892642125,-500.0,0.00027397,2]
[322223739,1712892642134,-500.0,0.00027397,2]
[322223740,1712892642143,-500.0,0.00027397,2]
[322223741,1712892642153,-500.0,0.00027397,2]
[322223742,1712892642162,-500.0,0.00027397,2]
[322223743,1712892642171,-500.0,0.00027397,2]
[322223744,1712892642180,-501.5328881,0.00027397,2]
[322223745,1712892642189,-500.0,0.00027397,2]
[322223746,1712892642198,-500.0,0.00027397,2]
[322223747,1712892642207,-500.0,0.00027397,2]
[322223748,1712892642216,-500.0,0.00027397,2]
[322223749,1712892642226,-406.1906656,0.00027397,2]
[322223750,1712892642235,-500.0,0.00027397,2]
[322223751,1712892642245,-712.25,0.00027397,2]
[322223752,1712892642254,-500.0,0.00027397,2]
[322223753,1712892642265,-589.40566707,0.00027397,2]
[322223754,1712892642274,-500.0,0.00027397,2]
[322223755,1712892642283,-241.7971136,0.00027397,2]
[322223756,1712892642293,-500.0,0.00027397,2]
[322223757,1712892642303,-699.3,0.00027397,2]
[322223758,1712892642314,-621.78,0.00027397,2]
[322223759,1712892642325,-282.03244573,0.00027397,2]
[322223760,1712892642336,-500.0,0.00027397,2]
[322223761,1712892642346,-1324.5,0.00027397,2]
[322223762,1712892642356,-500.0,0.00027397,2]
[322223763,1712892642367,-500.0,0.00027397,2]
[322223764,1712892642377,-500.0,0.00027397,2]
[322223765,1712892642386,-500.0,0.00027397,2]
[322223766,1712892642395,-503.94196534,0.00027397,2]
[322223767,1712892642404,-3621.42,0.00027397,2]
[322223768,1712892642415,-512.31302325,0.00027397,2]
[322223769,1712892642424,-502.33887796,0.00027397,2]
[322223770,1712892642434,-500.0,0.00027397,2]
[322223771,1712892642444,-500.0,0.00027397,2]
[322223772,1712892642453,-500.0,0.00027397,2]
[322223773,1712892642466,-500.0,0.00027397,2]
[322223774,1712892642476,-500.0,0.00027397,2]
[322223775,1712892642485,-500.0,0.00027397,2]
[322223776,1712892642494,-500.0,0.00027397,2]
[322223777,1712892642503,-500.0,0.00027397,2]
[322223778,1712892642512,-500.0,0.00027397,2]
[322223779,1712892642523,-500.0,0.00027397,2]
[322223780,1712892642532,-500.0,0.00027397,2]
[322223781,1712892642541,-505.49757862,0.00027397,2]
[322223782,1712892642550,-500.0,0.00027397,2]
[322223783,1712892642560,-500.0,0.00027397,2]
[322223784,1712892642569,-500.0,0.00027397,2]
[322223785,1712892642578,-500.0,0.00027397,2]
[322223786,1712892642588,-500.0,0.00027397,2]
[322223787,1712892642597,-500.0,0.00027397,2]
[322223788,1712892642606,-500.0,0.00027397,2]
[322223789,1712892642615,-500.0,0.00027397,2]
[322223790,1712892642624,-500.0,0.00027397,2]
[322223791,1712892642633,-500.0,0.00027397,2]
[322223792,1712892642643,-500.0,0.00027397,2]
[322223793,1712892642652,-500.0,0.00027397,2]
[322223794,1712892642661,-866.78,0.00027397,2]
[322223795,1712892642670,-500.0,0.00027397,2]
[322223796,1712892642679,-489.14286147,0.00027397,2]
[322223797,1712892642689,-500.0,0.00027397,2]
[322223798,1712892642699,-500.0,0.00027397,2]
[322223799,1712892642708,-500.0,0.00027397,2]
[322223800,1712892642717,-921.14,0.00027397,2]
[322223801,1712892642727,-500.0,0.00027397,2]
[322223802,1712892642736,-533.42,0.00027397,2]
[322223803,1712892642745,-500.0,0.00027397,2]
[322223804,1712892642755,-889.97,0.00027397,2]
[322223805,1712892642765,-539.91,0.00027397,2]
[322223806,1712892642775,-1948.01,0.00027397,2]
[322223807,1712892642785,-500.0,0.00027397,2]
[322223808,1712892642794,-500.0,0.00027397,2]
[322223809,1712892642804,-185.94618344,0.00027397,2]
[322223810,1712892642813,-500.0,0.00027397,2]
[322223811,1712892642822,-500.0,0.00027397,2]
[322223812,1712892642831,-594.4,0.00027397,2]
[322223813,1712892642841,-1981.09,0.00027397,2]
[322223814,1712892642852,-500.0,0.00027397,2]
[322223815,1712892642861,-3692.01,0.00027397,2]
[322223816,1712892642871,-2223.91,0.00027397,2]
[322223817,1712892642880,-1749.69,0.00027397,2]
[322223818,1712892642889,-500.0,0.00027397,2]
[322223819,1712892642898,-1092.2,0.00027397,2]
[322223820,1712892642907,-1423.32,0.00027397,2]
[322223821,1712892642916,-500.0,0.00027397,2]
[322223822,1712892642926,-500.0,0.00027397,2]
[322223823,1712892642937,-500.0,0.00027397,2]
[322223824,1712892642946,-500.0,0.00027397,2]
[322223825,1712892642956,-500.0,0.00027397,2]
[322223826,1712892642965,-19851.22,0.00027397,2]
[322223827,1712892642974,-1359.39,0.00027397,2]
[322223828,1712892642982,-500.0,0.00027397,2]
[322223829,1712892642991,-500.0,0.00027397,2]
[322223830,1712892643000,-500.0,0.00027397,2]
[322223831,1712892643009,-500.0,0.00027397,2]
[322223832,1712892643020,-3008.33,0.00027397,2]
[322223833,1712892643029,-500.0,0.00027397,2]
[322223834,1712892643038,-774.44,0.00027397,2]
[322223835,1712892643047,-845.07,0.00027397,2]
[322223836,1712892643057,-429.02986654,0.00027397,2]
[322223837,1712892643067,-878.57,0.00027397,2]
[322223838,1712892643076,-500.0,0.00027397,2]
[322223839,1712892643085,-2411.92,0.00027397,2]
[322223840,1712892643094,-1028.23,0.00027397,2]
[322223841,1712892643103,-756.02,0.00027397,2]
[322223842,1712892643112,-500.0,0.00027397,2]
[322223843,1712892643121,-688.0,0.00027397,2]
[322223844,1712892643131,-500.0,0.00027397,2]
[322223845,1712892643140,-500.0,0.00027397,2]
[322223846,1712892643149,-500.0,0.00027397,2]
[322223847,1712892643159,-500.0,0.00027397,2]
[322223848,1712892643168,-1675.04,0.00027397,2]
[322223849,1712892643177,-1317.46,0.00027397,2]
[322223850,1712892643186,-500.0,0.00027397,2]
[322223851,1712892643196,-500.0,0.00027397,2]
[322223852,1712892643206,-5148.49,0.00027397,2]
[322223853,1712892643215,-500.0,0.00027397,2]
[322223854,1712892643224,-500.0,0.00027397,2]
[322223855,1712892643233,-500.0,0.00027397,2]
[322223856,1712892643243,-500.0,0.00027397,2]
[322223857,1712892643252,-546.23,0.00027397,2]
[322223858,1712892643261,-500.0,0.00027397,2]
[322223859,1712892643272,-3240.75,0.00027397,2]
[322223860,1712892643281,-500.0,0.00027397,2]
[322223861,1712892643290,-500.0,0.00027397,2]
[322223862,1712892643300,-500.0,0.00027397,2]
[322223863,1712892643310,-1646.38,0.00027397,2]
[322223864,1712892643319,-500.0,0.00027397,2]
[322223865,1712892643330,-7247.37,0.00027397,2]
[322223866,1712892643341,-515.59,0.00027397,2]
[322223867,1712892643351,-500.0,0.00027397,2]
[322223868,1712892643360,-500.0,0.00027397,2]
[322223869,1712892643371,-500.0,0.00027397,2]
[322223870,1712892643380,-482.29849635,0.00027397,2]
[322223871,1712892643389,-500.0,0.00027397,2]
[322223872,1712892643399,-500.0,0.00027397,2]
[322223873,1712892643409,-500.0,0.00027397,2]
[322223874,1712892643419,-500.0,0.00027397,2]
[322223875,1712892643428,-500.0,0.00027397,2]
[322223876,1712892643438,-500.0,0.00027397,2]
[322223877,1712892643447,-510.03787854,0.00027397,2]
[322223878,1712892643456,-500.0,0.00027397,2]
[322223880,1712892643466,-884.72,0.00027397,2]
[322223882,1712892643475,-1825.72,0.00027397,2]
[322223883,1712892643484,-500.0,0.00027397,2]
[322223886,1712892643494,-500.0,0.00027397,2]
[322223888,1712892643503,-2214.51,0.00027397,2]
[322223889,1712892643514,-500.0,0.00027397,2]
[322223890,1712892643523,-858.42,0.00027397,2]
[322223891,1712892643532,-2623.92,0.00027397,2]
[322223892,1712892643541,-517.02,0.00027397,2]
[322223893,1712892643551,-500.0,0.00027397,2]
[322223894,1712892643560,-500.0,0.00027397,2]
[322223895,1712892643570,-500.0,0.00027397,2]
[322223897,1712892643579,-500.0,0.00027397,2]
[322223898,1712892643588,-500.0,0.00027397,2]
[322223899,1712892643597,-715.87,0.00027397,2]
[322223900,1712892643606,-664.78,0.00027397,2]
[322223901,1712892643616,-945.7,0.00027397,2]
[322223902,1712892643625,-1870.1,0.00027397,2]
[322223903,1712892643634,-500.0,0.00027397,2]
[322223905,1712892643643,-500.0,0.00027397,2]
[322223907,1712892643653,-500.0,0.00027397,2]
[322223909,1712892643662,-1053.76,0.00027397,2]
[322223911,1712892643671,-290.76260383,0.00027397,2]
[322223913,1712892643681,-500.0,0.00027397,2]
[322223916,1712892643690,-12550.12,0.00027397,2]
[322223919,1712892643699,-1072.78,0.00027397,2]
[322223922,1712892643709,-879.19,0.00027397,2]
[322223925,1712892643718,-241.27904459,0.00027397,2]
[322223928,1712892643727,-500.0,0.00027397,2]
[322223932,1712892643737,-500.0,0.00027397,2]
[322223935,1712892643747,-500.0,0.00027397,2]
[322223937,1712892643757,-500.0,0.00027397,2]
[322223941,1712892643767,-500.0,0.00027397,2]
[322223945,1712892643777,-688.61,0.00027397,2]
[322223948,1712892643787,-500.0,0.00027397,2]
[322223949,1712892643796,-2737.05,0.00027397,2]
[322223951,1712892643805,-500.0,0.00027397,2]
[322223953,1712892643815,-247.19236225,0.00027397,2]
[322223955,1712892643824,-500.0,0.00027397,2]
[322223957,1712892643834,-500.0,0.00027397,2]
[322223959,1712892643844,-500.0,0.00027397,2]
[322223961,1712892643853,-1325.19,0.00027397,2]
[322223964,1712892643863,-500.0,0.00027397,2]
[322223965,1712892643873,-856.5,0.00027397,2]
[322223967,1712892643883,-500.0,0.00027397,2]
[322223969,1712892643892,-500.0,0.00027397,2]
[322223971,1712892643901,-3559.32,0.00027397,2]
[322223973,1712892643910,-190.75626006,0.00027397,2]
[322223975,1712892643918,-500.0,0.00027397,2]
[322223976,1712892643927,-500.0,0.00027397,2]
[322223978,1712892643937,-506.16,0.00027397,2]
[322223980,1712892643946,-957.4,0.00027397,2]
[322223982,1712892643956,-500.0,0.00027397,2]
[322223983,1712892643965,-500.0,0.00027397,2]
[322223984,1712892643974,-500.0,0.00027397,2]
[322223985,1712892643983,-276.44183827,0.00027397,2]
[322223986,1712892643992,-500.0,0.00027397,2]
[322223987,1712892644002,-3446.51,0.00027397,2]
[322223988,1712892644011,-500.0,0.00027397,2]
[322223989,1712892644021,-2543.53,0.00027397,2]
[322223990,1712892644030,-500.0,0.00027397,2]
[322223991,1712892644040,-2928.69,0.00027397,2]
[322223992,1712892644049,-626.77,0.00027397,2]
[322223993,1712892644059,-500.0,0.00027397,2]
[322223994,1712892644068,-500.0,0.00027397,2]
[322223995,1712892644077,-500.0,0.00027397,2]
[322223996,1712892644086,-2405.41,0.00027397,2]
[322223997,1712892644097,-500.0,0.00027397,2]
[322223998,1712892644107,-500.0,0.00027397,2]
[322223999,1712892644118,-1876.02,0.00027397,2]
[322224000,1712892644130,-500.0,0.00027397,2]
[322224001,1712892644140,-586.76178276,0.00027397,2]
[322224002,1712892644149,-2205.45,0.00027397,2]
[322224003,1712892644159,-500.0,0.00027397,2]
[322224004,1712892644168,-588.82,0.00027397,2]
[322224005,1712892644177,-2181.84,0.00027397,2]
[322224006,1712892644187,-1966.37,0.00027397,2]
[322224007,1712892644196,-1041.6,0.00027397,2]
[322224008,1712892644204,-1630.16,0.00027397,2]
[322224009,1712892644213,-500.0,0.00027397,2]
[322224010,1712892644222,-1723.55,0.00027397,2]
[322224011,1712892644231,-565.26,0.00027397,2]
[322224012,1712892644401,-500.0,0.00027397,2]
[322224013,1712892644412,-500.0,0.00027397,2]
[322224014,1712892644421,-500.0,0.00027397,2]
[322224015,1712892644430,-500.0,0.00027397,2]
[322224016,1712892644442,-500.0,0.00027397,2]
[322224017,1712892644452,-1170.95,0.00027397,2]
[322224018,1712892644462,-1058.68,0.00027397,2]
[322224019,1712892644471,-500.0,0.00027397,2]
[322224020,1712892644480,-500.0,0.00027397,2]
[322224021,1712892644490,-561.49,0.00027397,2]
[322224022,1712892644499,-8557.66,0.00027397,2]
[322224023,1712892644508,-2521.06,0.00027397,2]
[322224024,1712892644517,-527.95,0.00027397,2]
[322224025,1712892644527,-167.30748,0.00027397,7]
[322224026,1712892644537,-167.30748,0.00027397,7]
[322224027,1712892644548,-167.30748,0.00027397,7]
[322224028,1712892644558,-167.30748,0.00027397,7]
[322224029,1712892644568,-167.30748,0.00027397,7]
[322224030,1712892644577,-167.30748,0.00027397,7]
[322224031,1712892644587,-203.123136,0.00027449,7]
[322224032,1712892644595,-483.98320613,0.00027464,2]
[322224033,1712892644604,-3753.23,0.00027482,2]
[322224034,1712892644613,-157.59573881,0.00027507,2]
[322224035,1712892644623,-203.18453933,0.00027528,2]
[322224036,1712892644633,-1000.0,0.00027585,10]
[322224037,1712892644643,-500.0,0.00027585,2]
[322224038,1712892644653,-513.55,0.00027655,2]
[322224039,1712892644664,-252.13,0.00027661,10]
[322224040,1712892644673,-500.0,0.00027671,2]
[322224041,1712892644682,-326.13161311,0.00027671,2]
[322224042,1712892644692,-446.49692526,0.00027671,2]
[322224043,1712892644701,-500.0,0.00027671,2]
[322224044,1712892644710,-188.74035076,0.00027671,2]
[322224045,1712892644719,-309.1291552,0.00027671,2]
[322224046,1712892644728,-500.0,0.00027671,2]
[322224047,1712892644738,-500.0,0.00027671,2]
[322224048,1712892644747,-500.0,0.00027671,2]
[322224049,1712892644756,-500.0,0.00027671,2]
[322224050,1712892644766,-500.0,0.00027671,2]
[322224051,1712892644776,-500.0,0.00027671,2]
[322224052,1712892644785,-636.86471708,0.00027671,2]
[322224053,1712892644794,-540.32,0.00027671,2]
[322224054,1712892644803,-409.57898056,0.00027671,2]
[322224055,1712892644812,-500.0,0.00027671,2]
[322224056,1712892644821,-500.0,0.00027671,2]
[322224057,1712892644831,-500.0,0.00027671,2]
[322224058,1712892644840,-500.0,0.00027671,2]
[322224059,1712892644849,-500.0,0.00027671,2]
[322224060,1712892644858,-500.0,0.00027671,2]
[322224061,1712892644868,-500.0,0.00027671,2]
[322224062,1712892644877,-500.0,0.00027671,2]
[322224063,1712892644887,-500.0,0.00027671,2]
[322224064,1712892644897,-197.74788864,0.00027671,2]
[322224065,1712892644906,-500.0,0.00027671,2]
[322224066,1712892644915,-583.85606987,0.00027671,2]
[322224067,1712892644924,-500.0,0.00027671,2]
[322224068,1712892644934,-416.38462169,0.00027671,2]
[322224069,1712892644944,-500.0,0.00027671,2]
[322224070,1712892644953,-267.93937863,0.00027671,2]
[322224071,1712892644962,-463.19075542,0.00027671,2]
[322224072,1712892644971,-500.0,0.00027671,2]
[322224073,1712892644980,-500.0,0.00027671,2]
[322224074,1712892644989,-500.0,0.00027671,2]
[322224075,1712892644998,-371.75167082,0.00027671,2]
[322224076,1712892645007,-563.47948337,0.00027671,2]
[322224077,1712892645017,-500.0,0.00027671,2]
[322224078,1712892645026,-500.0,0.00027671,2]
[322224079,1712892645035,-359.29533478,0.00027671,2]
[322224080,1712892645045,-500.0,0.00027671,2]
[322224081,1712892645054,-500.0,0.00027671,2]
[322224082,1712892645063,-484.21059271,0.00027671,2]
[322224083,1712892645073,-500.0,0.00027671,2]
[322224084,1712892645082,-500.0,0.00027671,2]
[322224085,1712892645091,-500.0,0.00027671,2]
[322224086,1712892645100,-500.0,0.00027671,2]
[322224087,1712892645110,-500.0,0.00027671,2]
[322224088,1712892645119,-500.0,0.00027671,2]
[322224089,1712892645128,-437.06002233,0.00027671,2]
[322224090,1712892645137,-500.0,0.00027671,2]
[322224091,1712892645147,-500.0,0.00027671,2]
[322224092,1712892645156,-500.0,0.00027671,2]
[322224093,1712892645165,-500.0,0.00027671,2]
[322224094,1712892645175,-500.0,0.00027671,2]
[322224095,1712892645184,-167.30748,0.00027671,7]
[322224096,1712892645193,-167.30748,0.00027671,7]